[Event "Titled Tuesday Blitz April 26 Early 2022"]
[White "Fernandez Hernandez, Gerardo"]
[Black "Simonovic, Miroslav"]
[WhiteFideId "2207400"]
[BlackFideId "919152"]
[WhiteElo "2181"]
[BlackElo "2043"]
[Result "0-1"]
[Round "09"]
[TimeControl "180+1"]
[Date "2022.04.26"]
[WhiteClock "0:00:15"]
[BlackClock "0:00:08"]

1. e4 {[%clk 0:02:54]}  c5 {[%clk 0:03:00]} 2. Nc3 {[%clk 0:02:53]}  Nc6 {[%clk 0:03:00]} 3. Bb5 {[%clk 0:02:54]}  g6 {[%clk 0:03:00]} 4. Bxc6 {[%clk 0:02:54]}  dxc6 {[%clk 0:03:00]} 5. d3 {[%clk 0:02:54]}  Bg7 {[%clk 0:03:01]} 6. f4 {[%clk 0:02:54]}  e5 {[%clk 0:03:01]} 7. Nf3 {[%clk 0:02:53]}  exf4 {[%clk 0:03:00]} 8. Bxf4 {[%clk 0:02:53]}  Ne7 {[%clk 0:03:01]} 9. O-O {[%clk 0:02:49]}  O-O {[%clk 0:03:00]} 10. Qd2 {[%clk 0:02:48]}  f5 {[%clk 0:02:59]} 11. Bh6 {[%clk 0:02:44]}  Be6 {[%clk 0:02:49]} 12. Rae1 {[%clk 0:02:30]}  Bf7 {[%clk 0:02:22]} 13. Bg5 {[%clk 0:02:16]}  Re8 {[%clk 0:02:03]} 14. exf5 {[%clk 0:02:10]}  gxf5 {[%clk 0:02:04]} 15. Qf4 {[%clk 0:01:59]}  Qd7 {[%clk 0:01:56]} 16. Ne5 {[%clk 0:01:36]}  Qd4+ {[%clk 0:01:47]} 17. Kh1 {[%clk 0:01:24]}  Qxf4 {[%clk 0:01:22]} 18. Bxf4 {[%clk 0:01:24]}  Ng6 {[%clk 0:01:20]} 19. Nxf7 {[%clk 0:01:06]}  Rxe1 {[%clk 0:01:20]} 20. Rxe1 {[%clk 0:01:03]}  Kxf7 {[%clk 0:01:13]} 21. Bd6 {[%clk 0:00:57]}  Bxc3 {[%clk 0:01:04]} 22. bxc3 {[%clk 0:00:54]}  b6 {[%clk 0:01:04]} 23. Kg1 {[%clk 0:00:45]}  Rd8 {[%clk 0:01:00]} 24. Bg3 {[%clk 0:00:37]}  c4 {[%clk 0:00:55]} 25. d4 {[%clk 0:00:31]}  c5 {[%clk 0:00:51]} 26. Bf2 {[%clk 0:00:26]}  cxd4 {[%clk 0:00:46]} 27. Bxd4 {[%clk 0:00:22]}  Rd5 {[%clk 0:00:38]} 28. Kf2 {[%clk 0:00:20]}  Ra5 {[%clk 0:00:37]} 29. Ra1 {[%clk 0:00:19]}  Ra3 {[%clk 0:00:22]} 30. Ke3 {[%clk 0:00:17]}  Ke6 {[%clk 0:00:23]} 31. Kd2 {[%clk 0:00:16]}  Kd5 {[%clk 0:00:21]} 32. Kc1 {[%clk 0:00:16]}  Ne5 {[%clk 0:00:20]} 33. Bxe5 {[%clk 0:00:12]}  Kxe5 {[%clk 0:00:21]} 34. Kb2 {[%clk 0:00:12]}  Ra5 {[%clk 0:00:19]} 35. Re1+ {[%clk 0:00:12]}  Kf4 {[%clk 0:00:19]} 36. Re7 {[%clk 0:00:11]}  h5 {[%clk 0:00:19]} 37. Rc7 {[%clk 0:00:08]}  Rc5 {[%clk 0:00:16]} 38. Rxa7 {[%clk 0:00:05]}  Re5 {[%clk 0:00:11]} 39. Rg7 {[%clk 0:00:04]}  Re2 {[%clk 0:00:09]} 40. Rg3 {[%clk 0:00:02]}  h4 {[%clk 0:00:08]} 41. Rg8 {[%clk 0:00:02]}  b5 {[%clk 0:00:07]} 42. Rg7 {[%clk 0:00:01]}  Ke3 {[%clk 0:00:07]} 43. Rg8 {[%clk 0:00:02]}  Kf2 {[%clk 0:00:06]} 44. Rg7 {[%clk 0:00:01]}  Kg1 {[%clk 0:00:06]} 45. Rg5 {[%clk 0:00:02]}  Rxg2 {[%clk 0:00:06]} 46. Rxf5 {[%clk 0:00:02]}  Kxh2 {[%clk 0:00:06]} 47. Rxb5 {[%clk 0:00:03]}  h3 {[%clk 0:00:07]} 48. Rh5 {[%clk 0:00:03]}  Rg3 {[%clk 0:00:07]} 49. a4 {[%clk 0:00:04]}  Kg2 {[%clk 0:00:07]} 50. a5 {[%clk 0:00:04]}  h2 {[%clk 0:00:08]} 51. Rxh2+ {[%clk 0:00:04]}  Kxh2 {[%clk 0:00:08]} 52. Ka3 {[%clk 0:00:05]}  Rg5 {[%clk 0:00:08]} 53. Kb4 {[%clk 0:00:06]}  Kg3 {[%clk 0:00:07]} 54. a6 {[%clk 0:00:06]}  Rg7 {[%clk 0:00:06]} 55. Kxc4 {[%clk 0:00:07]}  Rc7+ {[%clk 0:00:04]} 56. Kb4 {[%clk 0:00:08]}  Kf4 {[%clk 0:00:03]} 57. Kb5 {[%clk 0:00:09]}  Ke5 {[%clk 0:00:03]} 58. c4 {[%clk 0:00:10]}  Kd6 {[%clk 0:00:02]} 59. c5+ {[%clk 0:00:11]}  Rxc5+ {[%clk 0:00:02]} 60. Kb6 {[%clk 0:00:11]}  Rxc2 {[%clk 0:00:03]} 61. a7 {[%clk 0:00:11]}  Rb2+ {[%clk 0:00:03]} 62. Ka6 {[%clk 0:00:11]}  Kc7 {[%clk 0:00:01]} 63. Ka5 {[%clk 0:00:11]}  Ra2+ {[%clk 0:00:01]} 64. Kb5 {[%clk 0:00:12]}  Rxa7 {[%clk 0:00:02]} 65. Kc4 {[%clk 0:00:12]}  Rb7 {[%clk 0:00:02]} 66. Kc5 {[%clk 0:00:13]}  Rb6 {[%clk 0:00:03]} 67. Kd5 {[%clk 0:00:13]}  Rc6 {[%clk 0:00:04]} 68. Ke5 {[%clk 0:00:13]}  Rd6 {[%clk 0:00:05]} 69. Ke4 {[%clk 0:00:14]}  Kd7 {[%clk 0:00:06]} 70. Ke5 {[%clk 0:00:14]}  Kc6 {[%clk 0:00:07]} 71. Kf5 {[%clk 0:00:15]}  Rd5+ {[%clk 0:00:07]} 72. Ke4 {[%clk 0:00:15]}  Kd6 {[%clk 0:00:08]} 0-1


[Site "https://www.chess.com"]

[Event "Titled Tuesday Blitz April 26 Early 2022"]
[White "Fernandez Siles, Luis"]
[Black "Subelj, Jan"]
[WhiteFideId "2209420"]
[BlackFideId "14618583"]
[WhiteElo "2212"]
[BlackElo "2306"]
[Result "0-1"]
[Round "09"]
[TimeControl "180+1"]
[Date "2022.04.26"]
[WhiteClock "0:00:02"]
[BlackClock "0:00:43"]

1. d4 {[%clk 0:03:00]}  Nf6 {[%clk 0:02:55]} 2. c4 {[%clk 0:03:00]}  e6 {[%clk 0:02:55]} 3. Nc3 {[%clk 0:03:00]}  c5 {[%clk 0:02:49]} 4. e3 {[%clk 0:02:57]}  b6 {[%clk 0:02:46]} 5. Nf3 {[%clk 0:02:56]}  Bb7 {[%clk 0:02:47]} 6. Bd3 {[%clk 0:02:56]}  cxd4 {[%clk 0:02:44]} 7. exd4 {[%clk 0:02:56]}  d5 {[%clk 0:02:43]} 8. O-O {[%clk 0:02:47]}  Be7 {[%clk 0:02:21]} 9. Re1 {[%clk 0:02:47]}  O-O {[%clk 0:02:20]} 10. cxd5 {[%clk 0:02:42]}  Nxd5 {[%clk 0:02:19]} 11. Ne5 {[%clk 0:02:40]}  Nf6 {[%clk 0:02:17]} 12. Re3 {[%clk 0:02:19]}  Nc6 {[%clk 0:02:16]} 13. Rh3 {[%clk 0:01:50]}  g6 {[%clk 0:02:16]} 14. Bh6 {[%clk 0:01:49]}  Re8 {[%clk 0:02:10]} 15. Bb5 {[%clk 0:01:31]}  Rc8 {[%clk 0:02:02]} 16. Bg5 {[%clk 0:01:16]}  Rf8 {[%clk 0:01:46]} 17. Nf3 {[%clk 0:01:01]}  Nd5 {[%clk 0:01:36]} 18. Bh6 {[%clk 0:00:57]}  Nxc3 {[%clk 0:01:34]} 19. bxc3 {[%clk 0:00:57]}  Na5 {[%clk 0:01:30]} 20. Bxf8 {[%clk 0:00:40]}  Bxf8 {[%clk 0:01:31]} 21. Qe1 {[%clk 0:00:32]}  Qc7 {[%clk 0:01:27]} 22. Ng5 {[%clk 0:00:28]}  h6 {[%clk 0:01:24]} 23. Ne4 {[%clk 0:00:26]}  Bg7 {[%clk 0:01:21]} 24. Bd3 {[%clk 0:00:20]}  Nc4 {[%clk 0:01:09]} 25. Rc1 {[%clk 0:00:19]}  Nb2 {[%clk 0:01:04]} 26. Qe3 {[%clk 0:00:19]}  Nxd3 {[%clk 0:01:01]} 27. Qxd3 {[%clk 0:00:19]}  Bd5 {[%clk 0:01:02]} 28. c4 {[%clk 0:00:19]}  Bxc4 {[%clk 0:01:02]} 29. Qf3 {[%clk 0:00:18]}  b5 {[%clk 0:00:58]} 30. Nf6+ {[%clk 0:00:18]}  Kf8 {[%clk 0:00:56]} 31. d5 {[%clk 0:00:14]}  Qe7 {[%clk 0:00:50]} 32. Ne4 {[%clk 0:00:11]}  exd5 {[%clk 0:00:50]} 33. Nd2 {[%clk 0:00:09]}  Re8 {[%clk 0:00:49]} 34. g3 {[%clk 0:00:04]}  Qe2 {[%clk 0:00:47]} 35. Qf4 {[%clk 0:00:02]}  g5 {[%clk 0:00:47]} 36. Qd6+ {[%clk 0:00:02]}  Kg8 {[%clk 0:00:47]} 37. Nf1 {[%clk 0:00:02]}  d4 {[%clk 0:00:43]} 0-1


[Site "https://www.chess.com"]

[Event "Titled Tuesday Blitz April 26 Early 2022"]
[White "Fiorito, Fabian"]
[Black "Sarkar, Justin"]
[WhiteFideId "100200"]
[BlackFideId "2010011"]
[WhiteElo "2395"]
[BlackElo "2038"]
[Result "0-1"]
[Round "09"]
[TimeControl "180+1"]
[Date "2022.04.26"]
[WhiteClock "0:02:15"]
[BlackClock "0:01:13"]

1. d4 {[%clk 0:02:59]}  e6 {[%clk 0:02:28]} 2. Nc3 {[%clk 0:02:56]}  Bb4 {[%clk 0:02:20]} 3. e4 {[%clk 0:02:54]}  d5 {[%clk 0:02:16]} 4. e5 {[%clk 0:02:51]}  c5 {[%clk 0:02:13]} 5. a3 {[%clk 0:02:51]}  cxd4 {[%clk 0:02:07]} 6. axb4 {[%clk 0:02:44]}  dxc3 {[%clk 0:02:07]} 7. bxc3 {[%clk 0:02:45]}  Qc7 {[%clk 0:02:05]} 8. Qd4 {[%clk 0:02:42]}  Nc6 {[%clk 0:01:59]} 9. Bb5 {[%clk 0:02:42]}  Bd7 {[%clk 0:01:57]} 10. Bxc6 {[%clk 0:02:42]}  Bxc6 {[%clk 0:01:57]} 11. Nf3 {[%clk 0:02:42]}  Bb5 {[%clk 0:01:56]} 12. Bg5 {[%clk 0:02:40]}  h6 {[%clk 0:01:50]} 13. Be3 {[%clk 0:02:32]}  b6 {[%clk 0:01:39]} 14. O-O-O {[%clk 0:02:18]}  Ne7 {[%clk 0:01:36]} 15. g4 {[%clk 0:02:18]}  g5 {[%clk 0:01:19]} 16. Rd2 {[%clk 0:02:15]}  Nc6 {[%clk 0:01:13]} 0-1


[Site "https://www.chess.com"]

[Event "Titled Tuesday Blitz April 26 Early 2022"]
[White "Gatterer, Florian"]
[Black "Kaminski, Victor"]
[WhiteFideId "811688"]
[BlackFideId "1131630"]
[WhiteElo "2218"]
[BlackElo "2181"]
[Result "0-1"]
[Round "09"]
[TimeControl "180+1"]
[Date "2022.04.26"]
[WhiteClock "0:00:06"]
[BlackClock "0:00:10"]

1. f4 {[%clk 0:03:00]}  d6 {[%clk 0:02:58]} 2. Nf3 {[%clk 0:02:56]}  Nc6 {[%clk 0:02:58]} 3. d4 {[%clk 0:02:52]}  Nf6 {[%clk 0:02:56]} 4. e3 {[%clk 0:02:50]}  g6 {[%clk 0:02:48]} 5. Be2 {[%clk 0:02:47]}  Bg7 {[%clk 0:02:47]} 6. O-O {[%clk 0:02:48]}  O-O {[%clk 0:02:47]} 7. c4 {[%clk 0:02:48]}  e5 {[%clk 0:02:39]} 8. fxe5 {[%clk 0:02:47]}  dxe5 {[%clk 0:02:39]} 9. d5 {[%clk 0:02:47]}  Ne7 {[%clk 0:02:26]} 10. Nc3 {[%clk 0:02:41]}  Ne8 {[%clk 0:02:18]} 11. e4 {[%clk 0:02:38]}  h6 {[%clk 0:02:18]} 12. Be3 {[%clk 0:02:31]}  b6 {[%clk 0:02:12]} 13. b4 {[%clk 0:02:20]}  a5 {[%clk 0:02:11]} 14. a3 {[%clk 0:02:20]}  axb4 {[%clk 0:02:11]} 15. axb4 {[%clk 0:02:19]}  Rxa1 {[%clk 0:02:11]} 16. Qxa1 {[%clk 0:02:20]}  f5 {[%clk 0:02:10]} 17. Nd2 {[%clk 0:02:10]}  f4 {[%clk 0:02:02]} 18. Bf2 {[%clk 0:02:09]}  g5 {[%clk 0:02:03]} 19. h3 {[%clk 0:02:07]}  Nf6 {[%clk 0:02:02]} 20. Qd1 {[%clk 0:02:05]}  Qe8 {[%clk 0:02:02]} 21. c5 {[%clk 0:02:02]}  bxc5 {[%clk 0:02:01]} 22. bxc5 {[%clk 0:02:01]}  h5 {[%clk 0:01:58]} 23. d6 {[%clk 0:01:58]}  cxd6 {[%clk 0:01:57]} 24. cxd6 {[%clk 0:01:59]}  Nc6 {[%clk 0:01:54]} 25. Bb5 {[%clk 0:01:56]}  Bd7 {[%clk 0:01:54]} 26. Qb3+ {[%clk 0:01:54]}  Kh7 {[%clk 0:01:51]} 27. Nf3 {[%clk 0:01:47]}  g4 {[%clk 0:01:46]} 28. Ng5+ {[%clk 0:01:46]}  Kg6 {[%clk 0:01:43]} 29. h4 {[%clk 0:01:45]}  g3 {[%clk 0:01:39]} 30. Bb6 {[%clk 0:01:40]}  Qb8 {[%clk 0:01:33]} 31. Bxc6 {[%clk 0:01:33]}  Bxc6 {[%clk 0:01:32]} 32. Ne6 {[%clk 0:01:25]}  Rf7 {[%clk 0:01:17]} 33. Nd8 {[%clk 0:00:50]}  Rb7 {[%clk 0:01:09]} 34. Nxc6 {[%clk 0:00:48]}  Rxb6 {[%clk 0:01:09]} 35. Ne7+ {[%clk 0:00:48]}  Kh7 {[%clk 0:01:02]} 36. Qf7 {[%clk 0:00:47]}  Qxd6 {[%clk 0:00:42]} 37. Qg6+ {[%clk 0:00:29]}  Kh8 {[%clk 0:00:42]} 38. Nf5 {[%clk 0:00:29]}  Qd7 {[%clk 0:00:33]} 39. Ra1 {[%clk 0:00:23]}  Rb8 {[%clk 0:00:21]} 40. Nd5 {[%clk 0:00:22]}  Qa7+ {[%clk 0:00:09]} 41. Kf1 {[%clk 0:00:05]}  Qxa1+ {[%clk 0:00:09]} 42. Ke2 {[%clk 0:00:06]}  Rb2+ {[%clk 0:00:10]} 43. Kf3 {[%clk 0:00:06]}  Qd1# {[%clk 0:00:10]} 0-1


[Site "https://www.chess.com"]

[Event "Titled Tuesday Blitz April 26 Early 2022"]
[White "Haukenfrers, Dale"]
[Black "De Souza, Cristiano Gomes"]
[WhiteFideId "2603780"]
[BlackFideId "2151758"]
[WhiteElo "2051"]
[BlackElo "2068"]
[Result "1-0"]
[Round "09"]
[TimeControl "180+1"]
[Date "2022.04.26"]
[WhiteClock "0:01:26"]
[BlackClock "0:02:05"]

1. f3 {[%clk 0:03:00]}  e5 {[%clk 0:02:55]} 2. c3 {[%clk 0:03:01]}  d5 {[%clk 0:02:55]} 3. e4 {[%clk 0:03:01]}  c6 {[%clk 0:02:53]} 4. Be2 {[%clk 0:02:58]}  Nf6 {[%clk 0:02:50]} 5. d4 {[%clk 0:02:58]}  dxe4 {[%clk 0:02:50]} 6. dxe5 {[%clk 0:02:53]}  Qxd1+ {[%clk 0:02:50]} 7. Bxd1 {[%clk 0:02:53]}  exf3 {[%clk 0:02:47]} 8. Nxf3 {[%clk 0:02:52]}  Ng4 {[%clk 0:02:47]} 9. h3 {[%clk 0:02:48]}  Nh6 {[%clk 0:02:44]} 10. g4 {[%clk 0:02:43]}  Be6 {[%clk 0:02:42]} 11. O-O {[%clk 0:02:37]}  Nd7 {[%clk 0:02:42]} 12. Bf4 {[%clk 0:02:32]}  O-O-O {[%clk 0:02:38]} 13. Nd4 {[%clk 0:02:30]}  Bc5 {[%clk 0:02:34]} 14. b4 {[%clk 0:02:26]}  Bxd4+ {[%clk 0:02:34]} 15. cxd4 {[%clk 0:02:26]}  Nb6 {[%clk 0:02:34]} 16. a4 {[%clk 0:02:16]}  Rxd4 {[%clk 0:02:31]} 17. a5 {[%clk 0:02:17]}  Nd5 {[%clk 0:02:30]} 18. Bxh6 {[%clk 0:02:16]}  gxh6 {[%clk 0:02:29]} 19. a6 {[%clk 0:02:16]}  b5 {[%clk 0:02:28]} 20. Na3 {[%clk 0:02:05]}  h5 {[%clk 0:02:27]} 21. Rc1 {[%clk 0:02:04]}  Kd7 {[%clk 0:02:26]} 22. gxh5 {[%clk 0:01:59]}  Rg8+ {[%clk 0:02:25]} 23. Bg4 {[%clk 0:01:57]}  Ne3 {[%clk 0:02:22]} 24. Rxf7+ {[%clk 0:01:55]}  Ke8 {[%clk 0:02:21]} 25. Rxa7 {[%clk 0:01:39]}  Bxg4 {[%clk 0:02:18]} 26. hxg4 {[%clk 0:01:40]}  Nxg4 {[%clk 0:02:13]} 27. Ra8+ {[%clk 0:01:38]}  Kf7 {[%clk 0:02:13]} 28. Rxg8 {[%clk 0:01:37]}  Kxg8 {[%clk 0:02:13]} 29. a7 {[%clk 0:01:35]}  Rd8 {[%clk 0:02:11]} 30. Rxc6 {[%clk 0:01:34]}  Nxe5 {[%clk 0:02:11]} 31. Rb6 {[%clk 0:01:30]}  Nd7 {[%clk 0:02:05]} 32. Rd6 {[%clk 0:01:29]}  Kf7 {[%clk 0:02:05]} 33. Rxd7+ {[%clk 0:01:29]}  Rxd7 {[%clk 0:02:03]} 34. a8=Q {[%clk 0:01:29]}  Rd1+ {[%clk 0:02:04]} 35. Kf2 {[%clk 0:01:28]}  Ra1 {[%clk 0:02:05]} 36. Qd5+ {[%clk 0:01:26]} 1-0


[Site "https://www.chess.com"]

[Event "Titled Tuesday Blitz April 26 Early 2022"]
[White "Hernandez Bermudez, Ulises Eduardo"]
[Black "Rottenwohrer Suarez, Juan"]
[WhiteFideId "3902510"]
[BlackFideId "32068182"]
[WhiteElo "2056"]
[BlackElo "2158"]
[Result "0-1"]
[Round "09"]
[TimeControl "180+1"]
[Date "2022.04.26"]
[WhiteClock "0:01:40"]
[BlackClock "0:02:02"]

1. e4 {[%clk 0:03:00]}  g6 {[%clk 0:02:58]} 2. d4 {[%clk 0:03:00]}  Bg7 {[%clk 0:02:58]} 3. Nf3 {[%clk 0:02:55]}  d6 {[%clk 0:02:37]} 4. Bc4 {[%clk 0:02:50]}  Nf6 {[%clk 0:02:33]} 5. Qe2 {[%clk 0:02:48]}  O-O {[%clk 0:02:32]} 6. O-O {[%clk 0:02:47]}  Bg4 {[%clk 0:02:29]} 7. h3 {[%clk 0:02:42]}  Bxf3 {[%clk 0:02:28]} 8. Qxf3 {[%clk 0:02:42]}  Nc6 {[%clk 0:02:29]} 9. Rd1 {[%clk 0:02:40]}  e5 {[%clk 0:02:28]} 10. c3 {[%clk 0:02:34]}  Qe7 {[%clk 0:02:21]} 11. d5 {[%clk 0:02:28]}  Nd8 {[%clk 0:02:18]} 12. Nd2 {[%clk 0:02:20]}  Nd7 {[%clk 0:02:15]} 13. Nf1 {[%clk 0:02:07]}  f5 {[%clk 0:02:14]} 14. exf5 {[%clk 0:01:54]}  gxf5 {[%clk 0:02:11]} 15. Qe2 {[%clk 0:01:40]}  a5 {[%clk 0:02:02]} 0-1


[Site "https://www.chess.com"]

[Event "Titled Tuesday Blitz April 26 Early 2022"]
[White "Hoffmann, Asa"]
[Black "Van den Dikkenberg, Erik"]
[WhiteFideId "2001470"]
[BlackFideId "1005880"]
[WhiteElo "2117"]
[BlackElo "2118"]
[Result "1-0"]
[Round "09"]
[TimeControl "180+1"]
[Date "2022.04.26"]
[WhiteClock "0:00:46"]
[BlackClock "0:00:18"]

1. d4 {[%clk 0:02:59]}  Nf6 {[%clk 0:02:58]} 2. Bg5 {[%clk 0:02:57]}  Ne4 {[%clk 0:02:57]} 3. Bf4 {[%clk 0:02:57]}  c5 {[%clk 0:02:56]} 4. f3 {[%clk 0:02:55]}  g5 {[%clk 0:02:54]} 5. Bxb8 {[%clk 0:02:54]}  Rxb8 {[%clk 0:02:41]} 6. fxe4 {[%clk 0:02:54]}  Bg7 {[%clk 0:02:39]} 7. e3 {[%clk 0:02:51]}  Qb6 {[%clk 0:02:26]} 8. Nf3 {[%clk 0:02:43]}  Qxb2 {[%clk 0:02:14]} 9. Nbd2 {[%clk 0:02:42]}  g4 {[%clk 0:02:14]} 10. Ne5 {[%clk 0:02:40]}  cxd4 {[%clk 0:02:09]} 11. Rb1 {[%clk 0:02:09]}  Qc3 {[%clk 0:02:04]} 12. Rb3 {[%clk 0:02:06]}  Qa5 {[%clk 0:01:57]} 13. exd4 {[%clk 0:02:03]}  d6 {[%clk 0:01:51]} 14. Bb5+ {[%clk 0:01:49]}  Kf8 {[%clk 0:01:50]} 15. Nxg4 {[%clk 0:01:28]}  Bxd4 {[%clk 0:01:46]} 16. Rf1 {[%clk 0:01:25]}  h5 {[%clk 0:01:38]} 17. Qf3 {[%clk 0:01:17]}  f6 {[%clk 0:01:30]} 18. Ne3 {[%clk 0:01:14]}  Qxa2 {[%clk 0:01:02]} 19. Nf5 {[%clk 0:01:11]}  Bxf5 {[%clk 0:00:51]} 20. Qxf5 {[%clk 0:01:08]}  Qxc2 {[%clk 0:00:49]} 21. Bc4 {[%clk 0:00:55]}  b5 {[%clk 0:00:37]} 22. Bd5 {[%clk 0:00:52]}  Bc3 {[%clk 0:00:31]} 23. Rxc3 {[%clk 0:00:51]}  Qxc3 {[%clk 0:00:31]} 24. Qg6 {[%clk 0:00:51]}  Qe3+ {[%clk 0:00:19]} 25. Kd1 {[%clk 0:00:50]}  e6 {[%clk 0:00:20]} 26. Bxe6 {[%clk 0:00:47]}  Ke7 {[%clk 0:00:19]} 27. Qf7+ {[%clk 0:00:47]}  Kd8 {[%clk 0:00:18]} 28. Qd7# {[%clk 0:00:46]} 1-0


[Site "https://www.chess.com"]

[Event "Titled Tuesday Blitz April 26 Early 2022"]
[White "Karolczuk, Iwo"]
[Black "Costachi, Mihnea"]
[WhiteFideId "21816972"]
[BlackFideId "1217518"]
[WhiteElo "2277"]
[BlackElo "2476"]
[Result "1-0"]
[Round "09"]
[TimeControl "180+1"]
[Date "2022.04.26"]
[WhiteClock "0:00:09"]
[BlackClock "0:00:23"]

1. d4 {[%clk 0:03:00]}  Nf6 {[%clk 0:01:58]} 2. c4 {[%clk 0:02:59]}  g6 {[%clk 0:01:59]} 3. Nc3 {[%clk 0:02:57]}  Bg7 {[%clk 0:01:58]} 4. g3 {[%clk 0:02:57]}  O-O {[%clk 0:01:59]} 5. Bg2 {[%clk 0:02:58]}  d6 {[%clk 0:02:00]} 6. Nf3 {[%clk 0:02:57]}  Nc6 {[%clk 0:02:01]} 7. O-O {[%clk 0:02:57]}  Bf5 {[%clk 0:02:01]} 8. d5 {[%clk 0:02:31]}  Na5 {[%clk 0:02:01]} 9. Nd4 {[%clk 0:02:29]}  Bd7 {[%clk 0:02:01]} 10. b3 {[%clk 0:02:26]}  c5 {[%clk 0:02:02]} 11. dxc6 {[%clk 0:02:26]}  bxc6 {[%clk 0:02:03]} 12. Bb2 {[%clk 0:02:25]}  Rb8 {[%clk 0:02:03]} 13. Qd2 {[%clk 0:02:21]}  Qc7 {[%clk 0:02:03]} 14. Rac1 {[%clk 0:02:17]}  Rfc8 {[%clk 0:02:03]} 15. Rfd1 {[%clk 0:02:17]}  Nb7 {[%clk 0:02:02]} 16. h3 {[%clk 0:02:11]}  Nc5 {[%clk 0:02:02]} 17. Kh2 {[%clk 0:02:09]}  h5 {[%clk 0:01:59]} 18. Kg1 {[%clk 0:02:07]}  Kh7 {[%clk 0:01:59]} 19. e3 {[%clk 0:02:05]}  Rd8 {[%clk 0:01:59]} 20. Qc2 {[%clk 0:02:04]}  e5 {[%clk 0:01:58]} 21. Nf3 {[%clk 0:02:03]}  Bf5 {[%clk 0:01:58]} 22. Ng5+ {[%clk 0:01:51]}  Kg8 {[%clk 0:01:58]} 23. e4 {[%clk 0:01:52]}  Bc8 {[%clk 0:01:55]} 24. f4 {[%clk 0:01:44]}  exf4 {[%clk 0:01:49]} 25. gxf4 {[%clk 0:01:44]}  Ne6 {[%clk 0:01:50]} 26. Nxe6 {[%clk 0:01:43]}  Bxe6 {[%clk 0:01:51]} 27. Qf2 {[%clk 0:01:41]}  Qb6 {[%clk 0:01:50]} 28. Qxb6 {[%clk 0:01:38]}  axb6 {[%clk 0:01:51]} 29. Rd3 {[%clk 0:01:20]}  b5 {[%clk 0:01:46]} 30. cxb5 {[%clk 0:01:16]}  cxb5 {[%clk 0:01:47]} 31. Rcd1 {[%clk 0:01:17]}  b4 {[%clk 0:01:47]} 32. Na4 {[%clk 0:01:11]}  Ne8 {[%clk 0:01:48]} 33. Bxg7 {[%clk 0:01:08]}  Kxg7 {[%clk 0:01:49]} 34. e5 {[%clk 0:01:07]}  d5 {[%clk 0:01:48]} 35. Bxd5 {[%clk 0:01:05]}  Bf5 {[%clk 0:01:48]} 36. Rd4 {[%clk 0:00:56]}  Bxh3 {[%clk 0:01:47]} 37. Nc5 {[%clk 0:00:56]}  Nc7 {[%clk 0:01:47]} 38. Bc4 {[%clk 0:00:53]}  Rxd4 {[%clk 0:01:43]} 39. Rxd4 {[%clk 0:00:54]}  Ra8 {[%clk 0:01:44]} 40. Rd2 {[%clk 0:00:43]}  Bf5 {[%clk 0:01:41]} 41. Kf2 {[%clk 0:00:36]}  h4 {[%clk 0:01:41]} 42. Kg2 {[%clk 0:00:36]}  Kf8 {[%clk 0:01:34]} 43. Na4 {[%clk 0:00:35]}  Ne6 {[%clk 0:01:32]} 44. Kf3 {[%clk 0:00:33]}  Kg7 {[%clk 0:01:31]} 45. Nb6 {[%clk 0:00:30]}  Rh8 {[%clk 0:01:22]} 46. Nd5 {[%clk 0:00:29]}  h3 {[%clk 0:01:15]} 47. Rh2 {[%clk 0:00:29]}  Rh4 {[%clk 0:01:14]} 48. Kg3 {[%clk 0:00:25]}  Rg4+ {[%clk 0:01:13]} 49. Kf3 {[%clk 0:00:26]}  Rg1 {[%clk 0:01:13]} 50. Nxb4 {[%clk 0:00:21]}  g5 {[%clk 0:01:05]} 51. fxg5 {[%clk 0:00:19]}  Nxg5+ {[%clk 0:01:06]} 52. Kf4 {[%clk 0:00:19]}  Kg6 {[%clk 0:01:05]} 53. Nd5 {[%clk 0:00:18]}  Rg4+ {[%clk 0:01:02]} 54. Ke3 {[%clk 0:00:18]}  Re4+ {[%clk 0:01:00]} 55. Kf2 {[%clk 0:00:16]}  Rxe5 {[%clk 0:01:00]} 56. Ne3 {[%clk 0:00:14]}  Bd7 {[%clk 0:00:54]} 57. a4 {[%clk 0:00:10]}  f5 {[%clk 0:00:54]} 58. a5 {[%clk 0:00:10]}  f4 {[%clk 0:00:55]} 59. Bd3+ {[%clk 0:00:10]}  Kf6 {[%clk 0:00:50]} 60. Nc4 {[%clk 0:00:10]}  Re7 {[%clk 0:00:48]} 61. Nb6 {[%clk 0:00:06]}  Bg4 {[%clk 0:00:44]} 62. Nd5+ {[%clk 0:00:06]}  Ke6 {[%clk 0:00:44]} 63. Nxe7 {[%clk 0:00:07]}  Kxe7 {[%clk 0:00:45]} 64. a6 {[%clk 0:00:07]}  Be6 {[%clk 0:00:39]} 65. a7 {[%clk 0:00:07]}  Bd5 {[%clk 0:00:40]} 66. Bf1 {[%clk 0:00:08]}  Ne4+ {[%clk 0:00:36]} 67. Kf3 {[%clk 0:00:07]}  Nd2+ {[%clk 0:00:36]} 68. Kxf4 {[%clk 0:00:07]}  Nxf1 {[%clk 0:00:36]} 69. Rxh3 {[%clk 0:00:07]}  Nd2 {[%clk 0:00:34]} 70. Rd3 {[%clk 0:00:07]}  Nxb3 {[%clk 0:00:23]} 71. Rxd5 {[%clk 0:00:07]}  Ke6 {[%clk 0:00:22]} 72. Re5+ {[%clk 0:00:07]}  Kd6 {[%clk 0:00:22]} 73. a8=Q {[%clk 0:00:08]}  Nc5 {[%clk 0:00:23]} 74. Qd5+ {[%clk 0:00:08]}  Kc7 {[%clk 0:00:23]} 75. Qxc5+ {[%clk 0:00:09]} 1-0


[Site "https://www.chess.com"]